fUSD/lending_fUSD_20250101
["ID","MTS","AMOUNT","RATE_DAILY","PERIOD"]
[347330023,1735695050863,-500.0,0.00011174,2]
[347330024,1735695050874,-500.0,0.00011174,2]
[347330025,1735695050884,-500.0,0.00011174,2]
[347330026,1735695050894,-500.0,0.00011174,2]
[347330027,1735695050903,-3693.39,0.00011174,2]
[347330028,1735695050913,-500.0,0.00011174,2]
[347330029,1735695050922,-500.0,0.00011174,2]
[347330030,1735695050932,-500.0,0.00011174,2]
[347330031,1735695050941,-500.0,0.00011174,2]
[347330032,1735695050950,-2506.25,0.00011174,2]
[347330033,1735695050960,-2760.25,0.00011174,2]
[347330034,1735695050969,-500.0,0.00011174,2]
[347330035,1735695050978,-500.0,0.00011174,2]
[347330036,1735695050987,-864.97,0.00011174,2]
[347330037,1735695050997,-500.0,0.00011174,2]
[347330038,1735695051006,-1179.0,0.00011174,2]
[347330039,1735695051016,-2287.72,0.00011174,2]
[347330040,1735695051025,-1319.64,0.00011174,2]
[347330041,1735695051035,-500.0,0.00011174,2]
[347330042,1735695051044,-500.0,0.00011174,2]
[347330043,1735695051053,-3381.93,0.00011174,2]
[347330044,1735695051063,-500.0,0.00011174,2]
[347330045,1735695051072,-500.0,0.00011174,2]
[347330046,1735695051081,-500.0,0.00011174,2]
[347330047,1735695051090,-707.14,0.00011174,2]
[347330048,1735695051100,-751.22,0.00011174,2]
[347330049,1735695051110,-5172.4,0.00011174,2]
[347330050,1735695051119,-500.0,0.00011174,2]
[347330051,1735695051129,-711.97,0.00011174,2]
[347330052,1735695051140,-5330.53,0.00011174,2]
[347330053,1735695051150,-500.0,0.00011174,2]
[347330054,1735695051160,-1116.23,0.00011174,2]
[347330055,1735695051169,-500.0,0.00011174,2]
[347330056,1735695051179,-500.0,0.00011174,2]
[347330057,1735695051188,-500.0,0.00011174,2]
[347330058,1735695051198,-5870.47,0.00011174,2]
[347330059,1735695051207,-2284.58,0.00011174,2]
[347330060,1735695051217,-1193.67,0.00011174,2]
[347330061,1735695051226,-1186.46,0.00011174,2]
[347330062,1735695051238,-1072.71,0.00011174,2]
[347330063,1735695051247,-500.0,0.00011174,2]
[347330064,1735695051257,-667.99,0.00011174,2]
[347330065,1735695051266,-500.0,0.00011174,2]
[347330066,1735695051276,-1124.65,0.00011174,2]
[347330067,1735695051285,-1735.2,0.00011174,2]
[347330068,1735695051295,-500.0,0.00011174,2]
[347330069,1735695051305,-500.0,0.00011174,2]
[347330070,1735695051314,-500.0,0.00011174,2]
[347330071,1735695051324,-769.9,0.00011174,2]
[347330072,1735695051333,-1041.32,0.00011174,2]
[347330073,1735695051343,-3104.45,0.00011174,2]
[347330074,1735695051353,-500.0,0.00011174,2]
[347330075,1735695051363,-500.0,0.00011174,2]
[347330076,1735695051373,-2380.54,0.00011174,2]
[347330077,1735695051382,-500.0,0.00011174,2]
[347330078,1735695051392,-1078.16,0.00011174,2]
[347330079,1735695051401,-500.0,0.00011174,2]
[347330080,1735695051411,-500.0,0.00011174,2]
[347330081,1735695051420,-501.7220733,0.00011174,2]
[347330082,1735695051430,-500.0,0.00011174,2]
[347330083,1735695051440,-760.14,0.00011174,2]
[347330084,1735695051449,-518.15610964,0.00011174,2]
[347330085,1735695051459,-1963.86,0.00011174,2]
[347330086,1735695051468,-594.63,0.00011174,2]
[347330087,1735695051478,-500.0,0.00011174,2]
[347330088,1735695051487,-1000.0,0.00011174,2]
[347330089,1735695051497,-1487.24,0.00011174,2]
[347330090,1735695051506,-500.0,0.00011174,2]
[347330091,1735695051515,-2053.07,0.00011174,2]
[347330092,1735695051525,-500.0,0.00011174,2]
[347330093,1735695051534,-500.0,0.00011174,2]
[347330094,1735695051543,-500.0,0.00011174,2]
[347330095,1735695051553,-2085.57,0.00011174,2]
[347330096,1735695051562,-705.6,0.00011174,2]
[347330097,1735695051572,-3347.25,0.00011174,2]
[347330098,1735695051582,-500.0,0.00011174,2]
[347330099,1735695051591,-734.34,0.00011174,2]
[347330100,1735695051601,-500.0,0.00011174,2]
[347330101,1735695051610,-3349.73,0.00011174,2]
[347330102,1735695051619,-500.0,0.00011174,2]
[347330103,1735695051629,-1393.9,0.00011174,2]
[347330104,1735695051640,-6310.64,0.00011174,2]
[347330105,1735695051650,-1147.27,0.00011174,2]
[347330106,1735695051659,-1346.9,0.00011174,2]
[347330107,1735695051669,-5408.13,0.00011174,2]
[347330108,1735695051679,-1864.75,0.00011174,2]
[347330109,1735695051689,-500.0,0.00011174,2]
[347330110,1735695051699,-500.0,0.00011174,2]
[347330111,1735695051708,-619.39,0.00011174,2]
[347330112,1735695051718,-1350.29,0.00011174,2]
[347330113,1735695051727,-1590.47,0.00011174,2]
[347330114,1735695051736,-500.0,0.00011174,2]
[347330115,1735695051746,-4218.44,0.00011174,2]
[347330116,1735695051755,-500.0,0.00011174,2]
[347330117,1735695051765,-500.0,0.00011174,2]
[347330118,1735695051774,-1567.47,0.00011174,2]
[347330119,1735695051784,-6467.36,0.00011174,2]
[347330120,1735695051793,-580.77,0.00011174,2]
[347330121,1735695051803,-791.92,0.00011174,2]
[347330122,1735695051812,-500.0,0.00011174,2]
[347330123,1735695051821,-1112.46,0.00011174,2]
[347330124,1735695051831,-500.0,0.00011174,2]
[347330125,1735695051840,-500.0,0.00011174,2]
[347330126,1735695051850,-500.0,0.00011174,2]
[347330127,1735695051860,-782.25,0.00011174,2]
[347330128,1735695051869,-918.46,0.00011174,2]
[347330129,1735695051879,-1975.53,0.00011174,2]
[347330130,1735695051888,-1031.43,0.00011174,2]
[347330131,1735695051898,-3337.74,0.00011174,2]
[347330132,1735695051907,-1826.81,0.00011174,2]
[347330133,1735695051917,-4377.93,0.00011174,2]
[347330134,1735695051927,-957.06,0.00011174,2]
[347330135,1735695051936,-2763.68,0.00011174,2]
[347330136,1735695051945,-500.0,0.00011174,2]
[347330137,1735695051954,-1134.52,0.00011174,2]
[347330138,1735695051963,-500.0,0.00011174,2]
[347330139,1735695051973,-500.0,0.00011174,2]
[347330140,1735695051983,-1019.64,0.00011174,2]
[347330141,1735695051992,-500.0,0.00011174,2]
[347330142,1735695052002,-500.0,0.00011174,2]
[347330143,1735695052011,-2495.26,0.00011174,2]
[347330144,1735695052020,-1396.52,0.00011174,2]
[347330145,1735695052029,-6132.86,0.00011174,2]
[347330146,1735695052039,-651.16,0.00011174,2]
[347330147,1735695052048,-934.71,0.00011174,2]
[347330148,1735695052058,-500.0,0.00011174,2]
[347330149,1735695052067,-4011.18,0.00011174,2]
[347330150,1735695052076,-500.0,0.00011174,2]
[347330151,1735695052086,-500.0,0.00011174,2]
[347330152,1735695052096,-3342.61,0.00011174,2]
[347330153,1735695052106,-506.36,0.00011174,2]
[347330154,1735695052115,-1380.64,0.00011174,2]
[347330155,1735695052125,-607.14,0.00011174,2]
[347330156,1735695052135,-637.71,0.00011174,2]
[347330157,1735695052144,-3071.36,0.00011174,2]
[347330158,1735695052154,-500.0,0.00011174,2]
[347330159,1735695052163,-1125.75,0.00011174,2]
[347330160,1735695052173,-500.0,0.00011174,2]
[347330161,1735695052183,-500.0,0.00011174,2]
[347330162,1735695052192,-582.18,0.00011174,2]
[347330163,1735695052201,-500.0,0.00011174,2]
[347330164,1735695052210,-500.0,0.00011174,2]
[347330165,1735695052220,-3419.36,0.00011174,2]
[347330166,1735695052229,-500.0,0.00011174,2]
[347330167,1735695052242,-8431.63,0.00011174,2]
[347330168,1735695052251,-511.74,0.00011174,2]
[347330169,1735695052261,-618.12,0.00011174,2]
[347330170,1735695052270,-500.0,0.00011174,2]
[347330171,1735695052280,-739.02,0.00011174,2]
[347330172,1735695052290,-5166.1,0.00011174,2]
[347330173,1735695052299,-9231.81,0.00011174,2]
[347330174,1735695052309,-843.35,0.00011174,2]
[347330175,1735695052319,-3666.31,0.00011174,2]
[347330176,1735695052328,-822.33,0.00011174,2]
[347330177,1735695052338,-500.0,0.00011174,2]
[347330178,1735695052347,-3078.27,0.00011174,2]
[347330179,1735695052356,-500.0,0.00011174,2]
[347330180,1735695052366,-500.0,0.00011174,2]
[347330181,1735695052376,-1040.7,0.00011174,2]
[347330182,1735695052385,-500.0,0.00011174,2]
[347330183,1735695052395,-2598.7,0.00011174,2]
[347330184,1735695052406,-500.0,0.00011174,2]
[347330185,1735695052415,-3428.6,0.00011174,2]
[347330186,1735695052425,-927.13,0.00011174,2]
[347330187,1735695052435,-3410.12,0.00011174,2]
[347330188,1735695052444,-500.0,0.00011174,2]
[347330189,1735695052453,-2510.18,0.00011174,2]
[347330190,1735695052464,-4456.66,0.00011174,2]
[347330191,1735695052474,-1475.13,0.00011174,2]
[347330192,1735695052483,-500.0,0.00011174,2]
[347330193,1735695052492,-500.0,0.00011174,2]
[347330194,1735695052501,-5684.76,0.00011174,2]
[347330195,1735695052511,-500.0,0.00011174,2]
[347330196,1735695052521,-785.94,0.00011174,2]
[347330197,1735695052530,-500.0,0.00011174,2]
[347330198,1735695052539,-718.39,0.00011174,2]
[347330199,1735695052549,-500.0,0.00011174,2]
[347330200,1735695052558,-17849.52,0.00011174,2]
[347330201,1735695052568,-500.0,0.00011174,2]
[347330202,1735695052577,-500.0,0.00011174,2]
[347330203,1735695052587,-500.0,0.00011174,2]
[347330204,1735695052596,-4078.19,0.00011174,2]
[347330205,1735695052605,-500.0,0.00011174,2]
[347330206,1735695052615,-500.0,0.00011174,2]
[347330207,1735695052624,-500.0,0.00011174,2]
[347330208,1735695052634,-693.73,0.00011174,2]
[347330209,1735695052643,-500.0,0.00011174,2]
[347330210,1735695052652,-227.59153333,0.00011174,2]
[347330211,1735695052661,-2580.13,0.00011174,2]
[347330212,1735695052671,-3582.89,0.00011174,2]
[347330213,1735695052680,-1010.39,0.00011174,2]
[347330214,1735695052690,-1219.26,0.00011174,2]
[347330215,1735695052699,-500.0,0.00011174,2]
[347330216,1735695052708,-500.0,0.00011174,2]
[347330217,1735695052717,-1463.85,0.00011174,2]
[347330218,1735695052726,-2360.59,0.00011174,2]
[347330219,1735695052736,-9722.88,0.00011174,2]
[347330220,1735695052746,-517.08,0.00011174,2]
[347330221,1735695052756,-2622.95,0.00011174,2]
[347330222,1735695052765,-602.49,0.00011174,2]
[347330223,1735695052774,-2929.04,0.00011174,2]
[347330224,1735695052784,-500.0,0.00011174,2]
[347330225,1735695052793,-500.0,0.00011174,2]
[347330226,1735695052803,-2686.89,0.00011174,2]
[347330227,1735695052812,-500.0,0.00011174,2]
[347330228,1735695052822,-2156.2,0.00011174,2]
[347330229,1735695052831,-1642.06,0.00011174,2]
[347330230,1735695052840,-721.68,0.00011174,2]
[347330231,1735695052850,-500.0,0.00011174,2]
[347330232,1735695052860,-23019.97,0.00011174,2]
[347330233,1735695052869,-3671.24,0.00011174,2]
[347330234,1735695052878,-500.0,0.00011174,2]
[347330235,1735695052887,-6096.41,0.00011174,2]
[347330236,1735695052897,-1421.27,0.00011174,2]
[347330237,1735695052906,-3171.62,0.00011174,2]
[347330238,1735695052916,-1023.88,0.00011174,2]
[347330239,1735695052925,-3780.9,0.00011174,2]
[347330240,1735695052934,-5138.86,0.00011174,2]
[347330241,1735695052945,-1303.81,0.00011174,2]
[347330242,1735695052955,-1788.58,0.00011174,2]
[347330243,1735695053101,-2804.25,0.00011174,2]
[347330244,1735695053113,-585.55,0.00011174,2]
[347330245,1735695053123,-1869.92,0.00011174,2]
[347330246,1735695053132,-500.0,0.00011174,2]
[347330247,1735695053141,-3512.82,0.00011174,2]
[347330248,1735695053151,-2047.63676239,0.00011175,2]
[347330249,1735695053160,-28623.0,0.00011178,2]
[347330250,1735695053169,-1000.0,0.000112,2]
[347330251,1735695053178,-587.12288922,0.0001121,2]
[347330252,1735695053188,-436638.81377726,0.00011248,2]
[347330253,1735695053197,-359.98407833,0.00011248,2]
[347330254,1735695053207,-738.0,0.00011252,2]
[347330255,1735695053216,-1666.0,0.0001126,2]
[347330256,1735695053227,-1666.0,0.0001126,2]
[347330257,1735695053239,-1666.0,0.0001126,2]
[347330258,1735695053249,-1666.0,0.0001126,2]
[347330259,1735695053259,-1666.0,0.0001126,2]
[347330260,1735695053269,-1666.0,0.0001126,2]
[347330261,1735695053278,-1666.0,0.0001126,2]
[347330262,1735695053287,-1666.0,0.0001126,2]
[347330263,1735695053296,-1666.0,0.0001126,2]
[347330264,1735695053304,-1666.0,0.0001126,2]
[347330265,1735695053313,-1666.0,0.0001126,2]
[347330266,1735695053322,-1666.0,0.0001126,2]
[347330267,1735695053333,-1666.0,0.0001126,2]
[347330268,1735695053342,-1478.94902225,0.0001126,2]
[347330269,1735695053353,-4726.93764688,0.00011273,2]
[347330270,1735695053362,-15285.33,0.00011273,2]
[347330271,1735695053372,-2799.5,0.00011273,2]
[347330272,1735695053381,-6108.71,0.00011273,2]
[347330273,1735695053390,-17879.83,0.00011273,2]
[347330274,1735695053399,-2871.02,0.00011274,2]
[347330275,1735695053407,-500.0,0.00011274,2]
[347330276,1735695053416,-5740.98,0.00011274,2]
[347330277,1735695053425,-5560.65,0.00011274,2]
[347330278,1735695053433,-2454.52,0.00011274,2]
[347330279,1735695053442,-3157.8,0.00011274,2]
[347330280,1735695053451,-4660.62,0.00011274,2]
[347330281,1735695053460,-3816.09,0.00011274,2]
[347330282,1735695053469,-1777.14,0.00011274,2]
[347330283,1735695053478,-5080.2,0.00011274,2]
[347330284,1735695053486,-1300.08,0.00011274,2]
[347330285,1735695053495,-3386.21,0.00011274,2]
[347330286,1735695053505,-1082.98,0.00011274,2]
[347330287,1735695053514,-206.72782888,0.00011274,2]
[347330288,1735695053523,-200.0,0.00011275,2]
[347330289,1735695053532,-500.0,0.00011275,2]
[347330290,1735695053541,-3446.72,0.00011275,2]
[347330291,1735695053550,-500.0,0.00011275,2]
[347330292,1735695053559,-500.0,0.00011275,2]
[347330293,1735695053568,-585.77,0.00011275,2]
[347330294,1735695053577,-1624.0,0.00011275,2]
[347330295,1735695053586,-500.0,0.00011275,2]
[347330296,1735695053595,-565.31,0.00011275,2]
[347330297,1735695053604,-771.57,0.00011275,2]
[347330298,1735695053613,-947.73,0.00011275,2]
[347330299,1735695053622,-500.0,0.00011275,2]
[347330300,1735695053631,-580.33,0.00011275,2]
[347330301,1735695053640,-1475.54,0.00011275,2]
[347330302,1735695053649,-2845.58,0.00011275,2]
[347330303,1735695053658,-851.65,0.00011275,2]
[347330304,1735695053667,-500.0,0.00011275,2]
[347330305,1735695053676,-672.71,0.00011275,2]
[347330306,1735695053686,-971.05,0.00011275,2]
[347330307,1735695053695,-500.0,0.00011275,2]
[347330308,1735695053704,-1153.87,0.00011275,2]
[347330309,1735695053714,-2528.03,0.00011275,2]
[347330310,1735695053724,-500.0,0.00011275,2]
[347330311,1735695053733,-500.0,0.00011275,2]
[347330312,1735695053742,-500.0,0.00011275,2]
[347330313,1735695053751,-500.0,0.00011275,2]
[347330314,1735695053760,-1043.48,0.00011275,2]
[347330315,1735695053769,-746.89,0.00011275,2]
[347330316,1735695053779,-1611.1,0.00011275,2]
[347330317,1735695053788,-871.15,0.00011275,2]
[347330318,1735695053797,-1409.39,0.00011275,2]
[347330319,1735695053807,-927.39,0.00011275,2]
[347330320,1735695053816,-709.37,0.00011275,2]
[347330321,1735695053825,-1494.95,0.00011275,2]
[347330322,1735695053834,-500.0,0.00011275,2]
[347330323,1735695053844,-1962.43,0.00011275,2]
[347330324,1735695053855,-513.52,0.00011275,2]
[347330325,1735695053864,-500.0,0.00011275,2]
[347330326,1735695053874,-2004.66,0.00011275,2]
[347330327,1735695053883,-723.25,0.00011275,2]
[347330328,1735695053893,-500.0,0.00011275,2]
[347330329,1735695053902,-765.73,0.00011275,2]
[347330330,1735695053913,-500.0,0.00011275,2]
[347330331,1735695053923,-1350.63,0.00011275,2]
[347330332,1735695053933,-1492.48,0.00011275,2]
[347330333,1735695053942,-636.04,0.00011275,2]
[347330334,1735695053952,-500.0,0.00011275,2]
[347330335,1735695053961,-1198.63,0.00011275,2]
[347330336,1735695053971,-500.0,0.00011275,2]
[347330337,1735695053980,-1749.77,0.00011275,2]
[347330338,1735695053990,-500.0,0.00011275,2]
[347330339,1735695053999,-805.08,0.00011275,2]
[347330340,1735695054009,-514.33,0.00011275,2]
[347330341,1735695054018,-500.0,0.00011275,2]
[347330342,1735695054027,-500.0,0.00011275,2]
[347330343,1735695054037,-500.0,0.00011275,2]
[347330344,1735695054046,-1299.68,0.00011275,2]
[347330345,1735695054055,-612.66,0.00011275,2]
[347330346,1735695054064,-1538.77,0.00011275,2]
[347330347,1735695054074,-676.06,0.00011275,2]
[347330348,1735695054083,-500.0,0.00011275,2]
[347330349,1735695054092,-2420.34,0.00011275,2]
[347330350,1735695054101,-4626.79,0.00011275,2]
[347330351,1735695054111,-500.0,0.00011275,2]
[347330352,1735695054120,-2649.56,0.00011275,2]
[347330353,1735695054129,-1357.93,0.00011275,2]
[347330354,1735695054138,-500.75,0.00011275,2]
[347330355,1735695054148,-1001.45,0.00011275,2]
[347330356,1735695054158,-2686.11,0.00011275,2]
[347330357,1735695054167,-620.09,0.00011275,2]
[347330358,1735695054179,-500.0,0.00011275,2]
[347330359,1735695054188,-3786.02,0.00011275,2]
[347330360,1735695054198,-1914.33,0.00011275,2]
[347330361,1735695054207,-1204.13,0.00011275,2]
[347330362,1735695054216,-500.0,0.00011275,2]
[347330363,1735695054225,-2426.93,0.00011275,2]
[347330364,1735695054235,-2264.99,0.00011275,2]
[347330365,1735695054248,-500.0,0.00011275,2]
[347330366,1735695054257,-752.0,0.00011275,2]
[347330367,1735695054267,-500.0,0.00011275,2]
[347330368,1735695054277,-500.0,0.00011275,2]
[347330369,1735695054287,-2416.62,0.00011275,2]
[347330370,1735695054296,-2794.49,0.00011275,2]
[347330371,1735695054305,-500.0,0.00011275,2]
[347330372,1735695054314,-500.0,0.00011275,2]
[347330373,1735695054323,-2571.58,0.00011275,2]
[347330374,1735695054332,-2972.14,0.00011275,2]
[347330375,1735695054341,-814.97,0.00011275,2]
[347330376,1735695054351,-500.0,0.00011275,2]
[347330377,1735695054361,-2422.46,0.00011275,2]
[347330378,1735695054370,-500.0,0.00011275,2]
[347330379,1735695054379,-500.0,0.00011275,2]
[347330380,1735695054388,-510.65,0.00011275,2]
[347330381,1735695054398,-500.0,0.00011275,2]
[347330382,1735695054407,-2419.49,0.00011275,2]
[347330383,1735695054416,-500.0,0.00011275,2]
[347330384,1735695054425,-500.0,0.00011275,2]
[347330385,1735695054437,-1970.14,0.00011275,2]
[347330386,1735695054448,-2280.78,0.00011275,2]
[347330387,1735695054457,-2086.92,0.00011275,2]
[347330388,1735695054465,-500.0,0.00011275,2]
[347330389,1735695054477,-500.0,0.00011275,2]
[347330390,1735695054487,-8521.6,0.00011275,2]
[347330391,1735695054496,-3142.96,0.00011275,2]
[347330392,1735695054505,-500.0,0.00011275,2]
[347330393,1735695054514,-500.0,0.00011275,2]
[347330394,1735695054523,-500.0,0.00011275,2]
[347330395,1735695054533,-5547.27,0.00011275,2]
[347330396,1735695054541,-901.21,0.00011275,2]
[347330397,1735695054551,-733.79,0.00011275,2]
[347330398,1735695054560,-15685.18,0.00011275,2]
[347330399,1735695054570,-579.18,0.00011275,2]
[347330400,1735695054579,-1738.18,0.00011275,2]
[347330401,1735695054588,-41230.08,0.00011275,2]
[347330402,1735695054597,-972.76,0.00011275,2]
[347330403,1735695054607,-1526.85,0.00011275,2]
[347330404,1735695054617,-2888.11,0.00011275,2]
[347330405,1735695054626,-870.63,0.00011275,2]
[347330406,1735695054635,-743.47,0.00011275,2]
[347330407,1735695054645,-2274.09,0.00011275,2]
[347330408,1735695054654,-500.0,0.00011275,2]
[347330409,1735695054664,-500.0,0.00011275,2]
[347330410,1735695054674,-500.0,0.00011275,2]
[347330411,1735695054683,-23433.21,0.00011275,2]
[347330412,1735695054692,-500.0,0.00011275,2]
[347330413,1735695054702,-3324.05,0.00011275,2]
[347330414,1735695054711,-500.0,0.00011275,2]
[347330415,1735695054720,-2522.94,0.00011275,2]
[347330416,1735695054729,-3954.49,0.00011275,2]
[347330417,1735695054738,-3954.49,0.00011275,2]
[347330418,1735695054748,-1137.78,0.00011275,2]
[347330419,1735695054757,-7259.17,0.00011275,2]
[347330420,1735695054768,-5141.92,0.00011275,2]
[347330421,1735695054777,-3570.96,0.00011275,2]
[347330422,1735695054787,-5863.51,0.00011275,2]
[347330423,1735695054796,-6721.99,0.00011275,2]
[347330424,1735695054805,-543.0,0.00011276,2]
[347330425,1735695054815,-2774.42,0.00011278,2]
[347330426,1735695054824,-5091.0,0.00011278,2]
[347330427,1735695054834,-5091.0,0.00011278,2]
[347330428,1735695054843,-5250.15,0.00011278,2]
[347330429,1735695054854,-4503.95,0.00011278,2]
[347330430,1735695054863,-500.0,0.00011278,2]
[347330431,1735695054873,-10530.47,0.00011278,2]
[347330432,1735695054883,-9912.0,0.00011278,2]
[347330433,1735695054893,-3647.689,0.00011287,2]
[347330434,1735695054902,-185.336,0.00011287,2]
[347330435,1735695054911,-125260.0,0.00011288,2]
[347330436,1735695054920,-26195.0,0.00011288,2]
[347330437,1735695054929,-673.07,0.00011326,2]
[347330438,1735695054939,-6232.32711369,0.00011327,2]
[347330439,1735695054948,-1000536.97507897,0.00011327,2]
[347330440,1735695054957,-552327.67882176,0.00011327,2]
[347330441,1735695055782,-428.66727376,0.00011327,2]
[347330442,1735695057282,-2375.14,0.00011169,2]
[347330443,1735695057291,-664.09,0.00011171,2]
[347330444,1735695057300,-3503.38,0.00011275,2]
[347330445,1735695057309,-155807.8632313,0.00011327,2]
[347330446,1735695057320,-50130.70468253,0.00011327,2]
[347330447,1735695057332,-22962.09038652,0.00011327,2]
[347330448,1735695058596,-1572.42,0.00011169,2]
[347330449,1735695058606,-566792.42717758,0.00011327,2]
[347330450,1735695059228,-7228.76,0.00011327,2]
[347330451,1735695059243,-10853.99999999,0.00011327,2]
[347330452,1735695059254,-1127.72165314,0.00011327,2]
[347330453,1735695059266,-1116.78320645,0.00011327,2]
[347330454,1735695059280,-250754.36452485,0.00011327,2]
[347330455,1735695061061,262.15,0.00010137,2]
[347330456,1735695061316,160.93,0.00010317,2]
[347330457,1735695097020,500.0,9.78e-05,2]
[347330458,1735695121343,209.912,0.0001076,2]
[347330459,1735695133826,1017.35,8.479e-05,2]
[347330460,1735695134036,1017.35,0.00010743,2]
[347330461,1735695140986,250.0,0.00010397,2]
[347330462,1735695175704,250.0,0.00010379,2]
[347330463,1735695251536,3940.22,0.00010364,2]
[347330744,1735695380117,150.01011,0.0002,120]
[347330745,1735695381376,150.01011,0.0002,120]
[347330746,1735695381772,150.01011,0.0002,120]
[347330747,1735695426828,2616.0,0.00015,30]
[347330748,1735695440682,350.45,0.00010335,2]
[347330749,1735695449276,-300.0,0.00011069,2]
[347330750,1735695449300,-1000.0,0.0001107,2]
[347330751,1735695449322,-191.929,0.0001107,2]
[347330752,1735695449343,-98508.071,0.0001107,2]
[347330753,1735695450228,-100000.0,0.0001107,2]
[347330754,1735695473250,1820.677475,0.0002,120]
[347330755,1735695523029,1000.0,0.0001031,2]
[347330756,1735695553388,1401.93909238,0.00010971,2]
[347330757,1735695561203,2163.7381,0.0001097,2]
[347330758,1735695603112,9692.00387486,0.00010816,2]
[347330759,1735695669139,2088.34,0.00010288,2]
[347330760,1735695751587,201.467,0.0001076,2]
[347330761,1735695851854,660.28,0.0001026,2]
[347330762,1735695912409,158.54784669,0.00010701,2]
[347330764,1735695940685,364.49,0.00010137,2]
[347330765,1735696015082,315.36,0.00010265,2]
[347330766,1735696015292,315.36,0.00010268,2]
[347330767,1735696015705,315.36,0.00010271,2]
[347330768,1735696015950,315.36,0.00010274,2]
[347330769,1735696016099,315.36,0.00010276,2]
[347330770,1735696016458,315.36,0.00010279,2]
[347330771,1735696016576,315.36,0.00010282,2]
[347330772,1735696016757,315.36,0.00010284,2]
[347330773,1735696016945,315.36,0.00010287,2]
[347330774,1735696017136,315.36,0.0001029,2]
[347330775,1735696017366,315.36,0.00010293,2]
[347330776,1735696017573,315.36,0.00010295,2]
[347330777,1735696017782,315.36,0.00010298,2]
[347330778,1735696017983,315.36,0.00010301,2]
[347330779,1735696018204,315.36,0.00010303,2]
[347330780,1735696018387,315.36,0.00010306,2]
[347330781,1735696018803,315.36,0.00010309,2]
[347330782,1735696019024,315.36,0.00010312,2]
[347330783,1735696019223,315.36,0.00010314,2]
[347330784,1735696019420,315.36,0.00010317,2]
[347330785,1735696101665,915.61,8.348e-05,2]
[347330786,1735696102191,915.61,0.00010612,2]
[347330787,1735696107549,500.0,0.00010276,3]
[347330788,1735696124825,196.53,0.00010264,2]
[347330789,1735696198269,23900.0,0.00010255,2]
[347330795,1735696232390,-300.0,0.00011067,2]
[347330796,1735696232400,-1580.44867497,0.00011068,2]
[347330797,1735696232409,-500.0,0.00011068,2]
[347330798,1735696232418,-500.0,0.00011068,2]
[347330799,1735696232428,-844.65,0.00011068,2]
[347330800,1735696232755,-500.0,0.00011068,2]
[347330801,1735696232766,-1167.12,0.00011068,2]
[347330802,1735696232776,-2276.18,0.00011068,2]
[347330803,1735696232785,-917.97,0.00011068,2]
[347330804,1735696232794,-1403.98,0.00011068,2]
[347330805,1735696232804,-500.0,0.00011068,2]
[347330806,1735696232814,-500.0,0.00011068,2]
[347330807,1735696232823,-2309.57,0.00011068,2]
[347330808,1735696232833,-500.0,0.00011068,2]